bitfinex-derivatives/quotes_BTCF0:USTF0_20260131
["timestamp","ask_amount","ask_price","bid_price","bid_amount"]
[1769893689880,0.12826514,77973.0,77951.0,0.28852678]
[1769893690183,0.09244,77992.0,77970.0,0.28852678]
[1769893690580,0.09244,77992.0,77979.0,0.012841]
[1769893690777,0.31225558,77992.0,77962.0,0.09244]
[1769893690979,0.012841,77980.0,77962.0,0.09244]
[1769893691181,0.29665658,77980.0,77962.0,0.09244]
[1769893691380,0.12823636,77991.0,77946.0,0.09244]
[1769893691381,0.012844,77963.0,77946.0,0.09244]
[1769893691582,0.012844,77961.0,77946.0,0.09244]
[1769893691778,0.09244,77970.0,77946.0,0.09244]
[1769893692187,0.12825281,77969.0,77946.0,0.09244]
[1769893692486,0.00015844,77968.0,77954.0,0.012845]
[1769893692686,0.00015844,77968.0,77952.0,0.28852678]
[1769893692687,0.10528,77984.0,77959.0,0.012844]
[1769893692887,0.01284,77982.0,77959.0,0.012844]
[1769893693089,0.12827502,77980.0,77959.0,0.012844]
[1769893693388,0.09244,77984.0,77961.0,0.012844]
[1769893693589,0.09244,77984.0,77963.0,0.012843]
[1769893693880,0.12825527,77983.0,77965.0,0.012843]
[1769893694086,0.12825527,77983.0,77962.0,0.09244]
[1769893694087,0.28381558,77984.0,77962.0,0.09244]
[1769893694277,0.012841,77977.0,77962.0,0.09244]
[1769893694479,0.28381558,77981.0,77945.0,0.28852678]
[1769893694684,0.012845,77956.0,77942.0,0.09244]
[1769893695276,0.28381558,77963.0,77933.0,0.012848]
[1769893695487,0.012846,77945.0,77927.0,0.09244]
[1769893695687,0.012847,77942.0,77927.0,0.09244]
[1769893696083,0.09244,77951.0,77927.0,0.09244]
[1769893696084,0.09244,77951.0,77928.0,0.30137578]
[1769893696284,0.09244,77951.0,77930.0,0.012849]
[1769893696478,0.09244,77951.0,77927.0,0.09244]
[1769893696683,0.012846,77946.0,77927.0,0.09244]
[1769893696881,0.012844,77959.0,77928.0,0.28852678]
[1769893697087,0.14362736,77958.0,77934.0,0.012848]
[1769893697387,0.15647236,77957.0,77931.0,0.012849]
[1769893697593,0.012845,77955.0,77931.0,0.012849]
[1769893697887,0.012846,77951.0,77927.0,0.09244]
[1769893698086,0.28381558,77961.0,77927.0,0.105289]
[1769893698285,0.12829394,77950.0,77927.0,0.105289]
[1769893698788,0.012846,77951.0,77927.0,0.105289]
[1769893699083,0.12829723,77949.0,77927.0,0.105289]
[1769893699289,0.012846,77951.0,77927.0,0.105289]
[1769893699587,0.12829723,77948.0,77927.0,0.105289]
[1769893699791,0.012846,77951.0,77929.0,0.012849]
[1769893700087,0.12830711,77950.0,77929.0,0.012849]
[1769893700289,0.12830711,77950.0,77932.0,0.012848]
[1769893700586,0.012843,77964.0,77931.0,0.28852678]
[1769893700786,0.012843,77964.0,77943.0,0.012847]
[1769893700986,0.12830464,77966.0,77943.0,0.28852678]
[1769893701186,0.09248,77968.0,77943.0,0.28852678]
[1769893701380,0.12830464,77967.0,77943.0,0.28852678]
[1769893701583,0.12830464,77967.0,77932.0,0.012848]
[1769893701584,0.28381558,77962.0,77932.0,0.012848]
[1769893701780,0.012843,77964.0,77932.0,0.012849]
[1769893701989,0.12827831,77961.0,77942.0,0.012847]
[1769893702288,0.012843,77964.0,77942.0,0.012847]
[1769893702692,0.28381558,77962.0,77932.0,0.012849]
[1769893703386,0.12828489,77961.0,77941.0,0.28852678]
[1769893703595,0.012843,77964.0,77944.0,0.012846]
[1769893703782,0.105323,77968.0,77947.0,0.28852678]
[1769893703984,0.28381558,77983.0,77949.0,0.28852678]
[1769893704179,0.33828,77986.0,77953.0,0.28852678]
[1769893704180,0.012841,77981.0,77953.0,0.28852678]
[1769893704387,0.012841,77977.0,77956.0,0.012844]
[1769893704586,0.012841,77977.0,77953.0,0.30137178]
[1769893704783,0.28381558,77981.0,77950.0,0.012845]
[1769893704986,0.12825939,77976.0,77953.0,0.28852678]
[1769893705185,0.041321,77988.0,77956.0,0.012844]
[1769893705380,0.012841,77980.0,77958.0,0.012844]
[1769893705591,0.01284,77986.0,77964.0,0.012843]
[1769893705894,0.041321,77988.0,77958.0,0.28852678]
[1769893706186,0.12825116,77987.0,77972.0,0.012842]
[1769893706390,0.12825116,77987.0,77974.0,0.012842]
[1769893706586,0.041321,77988.0,77974.0,0.012842]
[1769893706985,0.041321,77988.0,77968.0,0.012843]
[1769893707180,0.012836,78006.0,77971.0,0.30136878]
[1769893707389,0.29665158,78006.0,77971.0,0.30136878]
[1769893707588,0.12823883,77998.0,77971.0,0.012842]
[1769893707787,0.012839,77993.0,77971.0,0.012842]
[1769893708095,0.28381558,77990.0,77957.0,0.09248]
[1769893708293,0.28381558,78001.0,77965.0,0.28852678]
[1769893708494,0.12822403,77989.0,77965.0,0.28852678]
[1769893708795,0.28381558,78001.0,77957.0,0.09248]
[1769893708796,0.012839,77992.0,77967.0,0.28852678]
[1769893708985,0.012838,77995.0,77971.0,0.012842]
[1769893709189,0.12824869,77994.0,77971.0,0.012842]
[1769893709390,0.012838,77993.0,77971.0,0.012842]
[1769893710094,0.012838,77993.0,77968.0,0.30136978]
[1769893710395,0.09248,78002.0,77979.0,0.012841]
[1769893710599,0.09248,78002.0,77977.0,0.28852678]
[1769893710894,0.28381558,78031.0,77987.0,0.28852678]
[1769893711100,0.28381558,78031.0,77976.0,0.09244]
[1769893711101,0.012834,78022.0,78000.0,0.012837]
[1769893711291,0.012834,78018.0,77997.0,0.012838]
[1769893711596,0.28381558,78031.0,77997.0,0.012838]
[1769893711795,0.14272815,78030.0,77997.0,0.012838]
[1769893711992,0.12818705,78022.0,77993.0,0.012838]
[1769893712194,0.012835,78012.0,77985.0,0.09244]
[1769893712393,0.28381558,78023.0,77960.0,0.33824]
[1769893712394,0.27165158,78009.0,77980.0,0.105281]
[1769893712698,0.012836,78006.0,77981.0,0.09244]
[1769893712891,0.09244,78018.0,77961.0,0.12820759]
[1769893713091,0.012841,77977.0,77949.0,0.012846]
[1769893713297,0.012842,77975.0,77940.0,0.28852678]
[1769893713492,0.09244,77974.0,77950.0,0.012846]
[1769893713688,0.09244,77974.0,77951.0,0.28852678]
[1769893713892,0.09244,77974.0,77953.0,0.28852678]
[1769893714496,0.09244,77974.0,77954.0,0.012845]
[1769893715093,0.012841,77981.0,77957.0,0.012844]
[1769893715804,0.012838,77999.0,77944.0,0.09244]
[1769893715805,0.28381558,77979.0,77944.0,0.09244]
[1769893716005,0.28381558,77970.0,77944.0,0.09244]
[1769893716207,0.012844,77959.0,77934.0,0.28852678]
[1769893716411,0.14455731,77969.0,77929.0,0.09244]
[1769893716412,0.28381558,77960.0,77929.0,0.09244]
[1769893716607,0.012846,77946.0,77919.0,0.012851]
[1769893716809,0.09244,77947.0,77923.0,0.28852678]
[1769893717015,0.09244,77947.0,77929.0,0.30080846]
[1769893717206,0.09244,77947.0,77932.0,0.30080746]
[1769893717411,0.08859348,77947.0,77935.0,0.012848]
[1769893717711,0.09244,77960.0,77940.0,0.012847]
[1769893717910,0.09244,77960.0,77940.0,0.30080646]
[1769893718210,0.09244,77960.0,77936.0,0.012848]
[1769893718911,0.09244,77960.0,77930.0,0.28795946]
[1769893719109,0.09244,77960.0,77937.0,0.012848]
[1769893719612,0.02844,77960.0,77934.0,0.28795946]
[1769893720313,0.02844,77960.0,77939.0,0.012847]
[1769893720709,0.02844,77960.0,77942.0,0.012847]
[1769893721015,0.28090922,77971.0,77936.0,0.28795946]
[1769893721209,0.43068,77970.0,77950.0,0.012846]
[1769893721409,0.09244,77969.0,77952.0,0.012845]
[1769893721609,0.01284,77982.0,77957.0,0.012844]
[1769893721811,0.09244,77981.0,77959.0,0.012844]
[1769893722107,0.27152908,77980.0,77948.0,0.012846]
[1769893722305,0.012842,77970.0,77948.0,0.012846]
[1769893722508,0.27152908,77966.0,77943.0,0.09244]
[1769893722717,0.28437308,77957.0,77928.0,0.09244]
[1769893722910,0.27152908,77957.0,77928.0,0.09244]
[1769893723107,0.27152908,77956.0,77934.0,0.012848]
[1769893723314,0.012845,77954.0,77931.0,0.012849]
[1769893723510,0.27152908,77956.0,77925.0,0.29948285]
[1769893723716,0.28437408,77955.0,77929.0,0.012849]
[1769893723913,0.28437408,77952.0,77929.0,0.012849]
[1769893724516,0.27152908,77952.0,77917.0,0.29948285]
[1769893724909,0.33824,77955.0,77917.0,0.29948285]
[1769893725106,0.33824,77955.0,77932.0,0.012848]
[1769893725311,0.33824,77955.0,77937.0,0.012848]
[1769893725510,0.33824,77955.0,77933.0,0.012848]
[1769893725911,0.33824,77955.0,77935.0,0.012848]
[1769893726117,0.33824,77955.0,77920.0,0.29948285]
[1769893726317,0.27152908,77953.0,77924.0,0.01285]
[1769893726516,0.12829806,77954.0,77927.0,0.012849]
[1769893726718,0.33824,77955.0,77927.0,0.012849]
[1769893726918,0.12830793,77953.0,77927.0,0.012849]
[1769893727313,0.33824,77955.0,77927.0,0.012849]
[1769893727519,0.12830793,77952.0,77927.0,0.012849]
[1769893727820,0.27152908,77954.0,77927.0,0.012849]
[1769893728119,0.012846,77950.0,77924.0,0.01285]
[1769893728320,0.28437508,77950.0,77924.0,0.01285]
[1769893728513,0.09248,77949.0,77927.0,0.012849]
[1769893728715,0.09248,77949.0,77929.0,0.012849]
[1769893728915,0.09248,77949.0,77926.0,0.012849]
[1769893729416,0.09248,77949.0,77930.0,0.012849]
[1769893731721,0.105326,77949.0,77926.0,0.012849]
[1769893731923,0.09248,77949.0,77928.0,0.012849]
[1769893732321,0.012846,77948.0,77925.0,0.01285]
[1769893732623,0.27152908,77948.0,77927.0,0.012849]
[1769893733018,0.27152908,77948.0,77929.0,0.012849]
[1769893733617,0.09248,77949.0,77929.0,0.012849]
[1769893734415,0.27152908,77948.0,77926.0,0.012849]
[1769893734620,0.27152908,77944.0,77920.0,0.01285]
[1769893734822,0.28437608,77944.0,77916.0,0.33836236]
[1769893735016,0.09248,77949.0,77929.0,0.012849]
[1769893735424,0.09248,77949.0,77931.0,0.012849]
[1769893736627,0.09248,77949.0,77929.0,0.29948285]
[1769893736825,0.012843,77969.0,77946.0,0.012846]
[1769893737021,0.14906226,77968.0,77951.0,0.012845]
[1769893737222,0.09248,77970.0,77953.0,0.012845]
[1769893737423,0.09248,77970.0,77949.0,0.012846]
[1769893737622,0.09248,77970.0,77947.0,0.29948285]
[1769893737819,0.27152908,77969.0,77943.0,0.09248]
[1769893738023,0.012844,77958.0,77943.0,0.09248]
[1769893738219,0.27152908,77960.0,77943.0,0.09248]
[1769893739023,0.012843,77967.0,77944.0,0.012847]
[1769893739423,0.012843,77964.0,77943.0,0.09248]
[1769893739628,0.27152908,77967.0,77943.0,0.09248]
[1769893739629,0.28437208,77967.0,77943.0,0.09248]
[1769893739928,0.27152908,77967.0,77946.0,0.012846]
[1769893740224,0.09248,77970.0,77949.0,0.012846]
[1769893740829,0.27152908,77978.0,77949.0,0.012846]
[1769893741024,0.09248,77985.0,77955.0,0.29948285]
[1769893741226,0.09248,77985.0,77945.0,0.012846]
[1769893741227,0.14804931,77984.0,77958.0,0.29948285]
[1769893741521,0.09248,77985.0,77963.0,0.31232585]
[1769893741720,0.27152908,77984.0,77945.0,0.29948285]
[1769893741927,0.27152908,77981.0,77945.0,0.29948285]
[1769893742218,0.012844,77961.0,77944.0,0.09248]
[1769893742418,0.27152908,77966.0,77944.0,0.09248]
[1769893742419,0.27152908,77962.0,77944.0,0.09248]
[1769893742627,0.012845,77956.0,77933.0,0.012848]
[1769893742825,0.012844,77959.0,77935.0,0.012848]
[1769893743023,0.43076,77966.0,77937.0,0.012848]
[1769893743024,0.012844,77962.0,77937.0,0.012848]
[1769893743227,0.012844,77962.0,77931.0,0.29948285]
[1769893743228,0.14795698,77961.0,77939.0,0.012847]
[1769893743430,0.012844,77962.0,77939.0,0.012847]
[1769893743626,0.14795968,77961.0,77942.0,0.012847]
[1769893743821,0.012843,77965.0,77942.0,0.012847]
[1769893744027,0.27624046,77964.0,77942.0,0.012847]
[1769893744327,0.012844,77961.0,77939.0,0.012847]
[1769893744528,0.27152908,77957.0,77929.0,0.09248]
[1769893744730,0.14799906,77960.0,77929.0,0.09248]
[1769893744731,0.41952814,77956.0,77929.0,0.09248]
[1769893744930,0.012845,77954.0,77929.0,0.09248]
[1769893745131,0.27152908,77956.0,77932.0,0.012848]
[1769893745331,0.14806313,77955.0,77932.0,0.012848]
[1769893745634,0.012844,77962.0,77940.0,0.012847]
[1769893745832,0.14806204,77961.0,77944.0,0.012846]
[1769893746131,0.14806204,77960.0,77941.0,0.012847]
[1769893746331,0.37685208,77967.0,77943.0,0.012847]
[1769893746531,0.1480552,77966.0,77943.0,0.31232985]
[1769893746729,0.1480552,77966.0,77929.0,0.09248]
[1769893746730,0.012841,77978.0,77953.0,0.012845]
[1769893746930,0.14748982,77977.0,77953.0,0.31232785]
[1769893747127,0.012841,77978.0,77953.0,0.31232785]
[1769893747128,0.14748982,77976.0,77958.0,0.012844]
[1769893747435,0.14748982,77975.0,77958.0,0.012844]
[1769893747629,0.12827913,77986.0,77963.0,0.012843]
[1769893747829,0.29876255,77996.0,77963.0,0.29729906]
[1769893748330,0.31160255,77983.0,77952.0,0.28445606]
[1769893748534,0.29876255,77983.0,77960.0,0.012844]
[1769893748731,0.01284,77986.0,77960.0,0.012844]
[1769893748932,0.012841,77981.0,77957.0,0.012844]
[1769893749135,0.01284,77984.0,77960.0,0.012844]
[1769893749337,0.10532,77987.0,77962.0,0.012843]
[1769893749737,0.01284,77985.0,77962.0,0.012843]
[1769893750637,0.01284,77985.0,77959.0,0.012844]
[1769893750938,0.01284,77985.0,77961.0,0.012844]
[1769893751533,0.09248,77987.0,77963.0,0.012843]
[1769893751837,0.09248,77987.0,77966.0,0.012843]
[1769893752435,0.29876255,78002.0,77973.0,0.012842]
[1769893752837,0.012837,78000.0,77968.0,0.28445606]
[1769893753339,0.012838,77998.0,77974.0,0.012841]
[1769893753731,0.29876255,78012.0,77973.0,0.28445606]
[1769893753931,0.012837,78002.0,77973.0,0.28445606]
[1769893754131,0.33824,78023.0,77967.0,0.09248]
[1769893754132,0.29876255,78000.0,77967.0,0.09248]
[1769893754442,0.012838,77994.0,77970.0,0.012842]
[1769893754641,0.012841,77977.0,77949.0,0.09244]
[1769893754940,0.012841,77980.0,77957.0,0.012844]
[1769893755136,0.29876255,78000.0,77958.0,0.28445606]
[1769893755532,0.012838,77994.0,77971.0,0.012842]
[1769893755737,0.09244,77993.0,77973.0,0.012842]
[1769893755939,0.03944,77993.0,77964.0,0.28445606]
[1769893756339,0.03944,77993.0,77972.0,0.012842]
[1769893757148,0.03944,77993.0,77964.0,0.28445606]
[1769893757149,0.03944,77993.0,77974.0,0.012842]
[1769893757540,0.03944,77993.0,77964.0,0.28445606]
[1769893757541,0.03944,77993.0,77971.0,0.012842]
[1769893757938,0.35104155,77993.0,77971.0,0.012842]
[1769893758746,0.29876255,77993.0,77971.0,0.012842]
[1769893758939,0.29876255,77993.0,77973.0,0.012842]
[1769893759335,0.012838,77997.0,77973.0,0.012842]
[1769893759845,0.012838,77997.0,77975.0,0.012841]
[1769893760446,0.012838,77995.0,77972.0,0.012842]
[1769893760841,0.2937572,77995.0,77972.0,0.012842]
[1769893761542,0.2809192,77986.0,77951.0,0.012845]
[1769893761746,0.012839,77992.0,77937.0,0.36992]
[1769893761747,0.2809192,77971.0,77939.0,0.09244]
[1769893761939,0.012843,77966.0,77939.0,0.09244]
[1769893762146,0.012843,77968.0,77945.0,0.012846]
[1769893762545,0.2937622,77968.0,77945.0,0.012846]
[1769893762741,0.2937622,77966.0,77945.0,0.012846]
[1769893763249,0.2297622,77966.0,77945.0,0.012846]
[1769893763446,0.2297622,77966.0,77939.0,0.09244]
[1769893763645,0.09244,77971.0,77959.0,0.012844]
[1769893764041,0.09244,77971.0,77961.0,0.012844]
[1769893764448,0.09244,77971.0,77963.0,0.012843]
[1769893764739,0.09244,77971.0,77953.0,0.39058991]
[1769893764740,0.09244,77989.0,77974.0,0.012842]
[1769893765139,0.09244,77989.0,77962.0,0.31099391]
[1769893765336,0.09244,77989.0,77965.0,0.012843]
[1769893765549,0.09244,77989.0,77964.0,0.29814991]
[1769893765743,0.09244,77989.0,77972.0,0.012842]
[1769893766145,0.012838,77997.0,77965.0,0.012843]
[1769893766344,0.012838,77995.0,77974.0,0.012842]
[1769893767144,0.2809192,77998.0,77966.0,0.29814991]
[1769893767451,0.09244,78006.0,77988.0,0.012839]
[1769893769343,0.09244,78006.0,77983.0,0.39058991]
[1769893769547,0.2937542,78016.0,77991.0,0.012839]
[1769893769852,0.2937542,78016.0,77984.0,0.29814991]
[1769893770445,0.012835,78014.0,77984.0,0.29814991]
[1769893770649,0.012836,78011.0,77988.0,0.012839]
[1769893771841,0.09244,78021.0,77983.0,0.39058991]
[1769893772046,0.14357191,78020.0,77983.0,0.39058991]
[1769893772250,0.012836,78011.0,77988.0,0.012839]
[1769893772445,0.2809192,78013.0,77984.0,0.01284]
[1769893772651,0.2809192,78003.0,77983.0,0.10528]
[1769893774153,0.2809192,78003.0,77983.0,0.09244]
[1769893774547,0.012837,78002.0,77983.0,0.09244]
[1769893774742,0.2809192,78003.0,77983.0,0.09244]
[1769893774946,0.012837,78001.0,77983.0,0.09244]
[1769893775147,0.012838,77996.0,77983.0,0.09244]
[1769893775349,0.2809192,77991.0,77970.0,0.012842]
[1769893775649,0.012842,77972.0,77950.0,0.012846]
[1769893775950,0.2809192,77977.0,77947.0,0.08898245]
[1769893775951,0.2937622,77968.0,77947.0,0.08898245]
[1769893776151,0.2809192,77968.0,77948.0,0.012846]
[1769893776349,0.2809192,77965.0,77947.0,0.08898245]
[1769893776545,0.012842,77973.0,77953.0,0.012845]
[1769893776847,0.40915638,77974.0,77955.0,0.012845]
[1769893777052,0.2809192,77974.0,77955.0,0.012845]
[1769893777251,0.55883748,77973.0,77955.0,0.012845]
[1769893777650,0.50883748,77973.0,77955.0,0.012845]
[1769893779753,0.50883748,77973.0,77947.0,0.08898245]
[1769893780148,0.50883748,77973.0,77952.0,0.012845]
[1769893780349,0.2994315,77969.0,77947.0,0.10182845]
[1769893780550,0.2865885,77961.0,77940.0,0.012847]
[1769893781048,0.2865885,77961.0,77933.0,0.09244]
[1769893781251,0.2865885,77961.0,77942.0,0.012847]
[1769893781557,0.2865885,77961.0,77944.0,0.012846]
[1769893782346,0.2865885,77961.0,77947.0,0.012846]
[1769893782544,0.2865885,77961.0,77944.0,0.012846]
[1769893782948,0.2865885,77961.0,77946.0,0.012846]
[1769893783354,0.2865885,77961.0,77943.0,0.012847]
[1769893783852,0.2865885,77961.0,77945.0,0.012846]
[1769893784048,0.2865885,77961.0,77942.0,0.012847]
[1769893784850,0.2535885,77961.0,77939.0,0.012847]
[1769893785157,0.2535885,77961.0,77943.0,0.012847]
[1769893785654,0.5917885,77961.0,77943.0,0.012847]
[1769893785853,0.3382,77961.0,77943.0,0.012847]
[1769893786353,0.09244,77973.0,77934.0,0.27947994]
[1769893786558,0.012841,77977.0,77952.0,0.012845]
[1769893786748,0.09244,77991.0,77956.0,0.012845]
[1769893786749,0.12828407,77972.0,77956.0,0.012845]
[1769893786951,0.43064,77976.0,77958.0,0.012844]
[1769893787149,0.43064,77976.0,77960.0,0.012844]
[1769893787454,0.09244,77976.0,77959.0,0.012844]
[1769893787756,0.09244,77976.0,77948.0,0.29232594]
[1769893787757,0.29150447,77989.0,77958.0,0.27947994]
[1769893787957,0.09244,77989.0,77978.0,0.012841]
[1769893788255,0.08759229,77989.0,77977.0,0.012841]
[1769893790250,0.08759229,77989.0,77980.0,0.012841]
[1769893791257,0.08759229,77989.0,77966.0,0.37191994]
[1769893791550,0.08759229,77989.0,77981.0,0.01284]
[1769893791760,0.08759229,77989.0,77968.0,0.012843]
[1769893791946,0.08759229,77989.0,77978.0,0.012841]
[1769893792261,0.08759229,77989.0,77982.0,0.01284]
[1769893792552,0.29150447,78000.0,77970.0,0.27947994]
[1769893792859,0.29150447,78000.0,77966.0,0.09244]
[1769893792860,0.3382,78007.0,77988.0,0.012839]
[1769893793056,0.09244,78008.0,77971.0,0.012842]
[1769893793057,0.09244,78008.0,77990.0,0.012839]
[1769893794158,0.012837,78005.0,77982.0,0.01284]
[1769893794462,0.09244,78008.0,77981.0,0.09244]
[1769893794660,0.29150447,78005.0,77981.0,0.10528]
[1769893794961,0.29150447,78003.0,77981.0,0.10528]
[1769893795154,0.29150447,78001.0,77981.0,0.10528]
[1769893795353,0.29150447,78001.0,77985.0,0.01284]
[1769893795549,0.29150447,77999.0,77979.0,0.012841]
[1769893795750,0.29150447,77997.0,77966.0,0.09244]
[1769893795956,0.29150447,77989.0,77966.0,0.105283]
[1769893796156,0.29150447,77987.0,77966.0,0.09244]
[1769893796552,0.29150447,77978.0,77948.0,0.09244]
[1769893796761,0.29150447,77978.0,77948.0,0.37191994]
[1769893796958,0.29150447,77978.0,77949.0,0.27947994]
[1769893797453,0.29150447,77978.0,77963.0,0.012843]
[1769893797658,0.29150447,77987.0,77953.0,0.27947994]
[1769893797960,0.4197581,77987.0,77957.0,0.27947994]
[1769893798455,0.09244,77989.0,77977.0,0.012841]
[1769893798657,0.09244,77989.0,77974.0,0.012842]
[1769893799159,0.29150447,77996.0,77978.0,0.012841]
[1769893799359,0.29150447,77996.0,77980.0,0.012841]
[1769893799560,0.12823307,77995.0,77980.0,0.012841]
[1769893799753,0.06423307,77995.0,77980.0,0.012841]
[1769893799955,0.35573754,77995.0,77977.0,0.012841]
[1769893800658,0.35573754,77995.0,77962.0,0.09244]
[1769893800862,0.29150447,77984.0,77962.0,0.105284]
[1769893801051,0.29150447,77980.0,77957.0,0.012844]
[1769893801249,0.29150447,77976.0,77946.0,0.09244]
[1769893801561,0.29150447,77957.0,77933.0,0.012848]
[1769893801760,0.29150447,77954.0,77926.0,0.09244]
[1769893802063,0.29150447,77952.0,77926.0,0.012849]
[1769893802561,0.12826926,77951.0,77926.0,0.012849]
[1769893802760,0.29150447,77950.0,77926.0,0.012849]
[1769893803060,0.29150447,77959.0,77922.0,0.27947994]
[1769893803363,0.29150447,77962.0,77934.0,0.012848]
[1769893803556,0.29150447,77958.0,77929.0,0.012849]
[1769893803762,0.29150447,77956.0,77929.0,0.012849]
[1769893804560,0.29150447,77954.0,77929.0,0.012849]
[1769893804962,0.29150447,77954.0,77932.0,0.012849]
[1769893805360,0.29150447,77952.0,77932.0,0.012849]
[1769893805963,0.12830053,77951.0,77932.0,0.012849]
[1769893806263,0.29150447,77950.0,77932.0,0.012849]
[1769893806964,0.29676869,77948.0,77932.0,0.012849]
[1769893807166,0.25476869,77948.0,77932.0,0.012849]
[1769893807866,0.25476869,77948.0,77934.0,0.012848]
[1769893808460,0.25476869,77948.0,77936.0,0.012848]
[1769893808962,0.12830382,77947.0,77916.0,0.00012236]
[1769893809265,0.29676869,77945.0,77924.0,0.01285]
[1769893809467,0.29676869,77944.0,77926.0,0.012849]
[1769893809967,0.29676869,77954.0,77933.0,0.012848]
[1769893810167,0.30961369,77954.0,77930.0,0.012849]
[1769893810467,0.29676869,77950.0,77930.0,0.012849]
[1769893810659,0.33824,77949.0,77930.0,0.012849]
[1769893810966,0.29676869,77948.0,77932.0,0.012848]
[1769893811362,0.29676869,77946.0,77932.0,0.012848]
[1769893811762,0.29676869,77946.0,77928.0,0.012849]
[1769893814365,0.25376869,77946.0,77928.0,0.012849]
[1769893815961,0.25376869,77946.0,77921.0,0.01285]
[1769893816157,0.25376869,77946.0,77930.0,0.012849]
[1769893819169,0.25376869,77946.0,77919.0,0.012851]
[1769893819964,0.25376869,77946.0,77928.0,0.012849]
[1769893820767,0.25376869,77946.0,77929.0,0.012849]
[1769893820969,0.25376869,77946.0,77921.0,0.01285]
[1769893821267,0.25376869,77946.0,77930.0,0.012849]
[1769893821467,0.22676869,77946.0,77930.0,0.012849]
[1769893824568,0.22676869,77946.0,77928.0,0.012849]
[1769893824764,0.30961569,77944.0,77922.0,0.01285]
[1769893824965,0.29676869,77942.0,77922.0,0.01285]
[1769893826369,0.29676869,77939.0,77921.0,0.01285]
[1769893828670,0.24476869,77939.0,77921.0,0.01285]
[1769893829970,0.12832028,77938.0,77919.0,0.012851]
[1769893830173,0.33832,77960.0,77937.0,0.012848]
[1769893830471,0.33832,77968.0,77944.0,0.29086193]
[1769893830664,0.48628051,77967.0,77947.0,0.012846]
[1769893830864,0.14796051,77966.0,77947.0,0.012846]
[1769893831172,0.30960969,77980.0,77948.0,0.29086193]
[1769893831374,0.14638054,77979.0,77948.0,0.29086193]
[1769893831575,0.29676869,77970.0,77947.0,0.09248]
[1769893831870,0.29676869,77970.0,77948.0,0.012846]
[1769893832064,0.012843,77969.0,77947.0,0.09248]
[1769893832865,0.30960969,77979.0,77955.0,0.012845]
[1769893833069,0.012839,77988.0,77964.0,0.30370493]
[1769893833273,0.29676869,77991.0,77970.0,0.012842]
[1769893833674,0.29676869,77991.0,77967.0,0.29086193]
[1769893833868,0.29676869,77991.0,77968.0,0.012843]
[1769893834274,0.30960769,77991.0,77967.0,0.29086193]
[1769893834471,0.30960769,77991.0,77964.0,0.012843]
[1769893834777,0.29676869,77975.0,77961.0,0.00384352]
[1769893834972,0.29676869,77965.0,77943.0,0.105327]
[1769893835175,0.29676869,77965.0,77943.0,0.09248]
[1769893835774,0.23976869,77965.0,77943.0,0.09248]
[1769893836072,0.23976869,77965.0,77914.0,0.29086193]
[1769893836270,0.012846,77951.0,77922.0,0.01285]
[1769893836468,0.33828,77950.0,77922.0,0.01285]
[1769893836673,0.33828,77950.0,77925.0,0.01285]
[1769893836877,0.33828,77950.0,77921.0,0.01285]
[1769893837376,0.33828,77950.0,77924.0,0.01285]
[1769893838070,0.33828,77950.0,77921.0,0.09248]
[1769893838071,0.2778851,77949.0,77921.0,0.09248]
[1769893839570,0.2778851,77947.0,77921.0,0.09248]
[1769893840871,0.33828,77946.0,77921.0,0.09248]
[1769893841077,0.012843,77968.0,77921.0,0.09248]
[1769893841078,0.33828,77959.0,77935.0,0.27433938]
[1769893841374,0.43076,77959.0,77935.0,0.27433938]
[1769893843177,0.36976,77959.0,77935.0,0.27433938]
[1769893843477,0.36976,77959.0,77936.0,0.012848]
[1769893844076,0.09248,77959.0,77943.0,0.27418695]
[1769893844278,0.33828,77966.0,77943.0,0.27418695]
[1769893844473,0.09248,77974.0,77947.0,0.27418695]
[1769893844775,0.16159651,77973.0,77959.0,0.27418695]
[1769893844980,0.33828,77984.0,77959.0,0.27418695]
[1769893845178,0.012841,77977.0,77950.0,0.28703295]
[1769893845380,0.2923708,77975.0,77947.0,0.012846]
[1769893845586,0.2923708,77969.0,77935.0,0.09248]
[1769893845878,0.2923708,77963.0,77935.0,0.09248]
[1769893846380,0.2923708,77963.0,77936.0,0.012848]
[1769893846781,0.2923708,77961.0,77936.0,0.012848]
[1769893847480,0.2923708,77961.0,77938.0,0.012847]
[1769893849076,0.33828,77968.0,77935.0,0.09248]
[1769893849077,0.33828,77968.0,77943.0,0.28703395]
[1769893849374,0.16104283,77967.0,77948.0,0.27418695]
[1769893849580,0.012841,77976.0,77951.0,0.012845]
[1769893849782,0.16102045,77975.0,77953.0,0.28703195]
[1769893850075,0.16102045,77975.0,77950.0,0.012846]
[1769893850076,0.2923708,77973.0,77950.0,0.012846]
[1769893850279,0.16102045,77974.0,77949.0,0.09248]
[1769893850280,0.16102045,77972.0,77949.0,0.09248]
[1769893850478,0.012843,77964.0,77949.0,0.09248]
[1769893851081,0.012844,77962.0,77949.0,0.09248]
[1769893851483,0.012843,77965.0,77942.0,0.012847]
[1769893851684,0.012843,77963.0,77941.0,0.012847]
[1769893851885,0.105323,77966.0,77941.0,0.012847]
[1769893852086,0.16103862,77965.0,77943.0,0.012847]
[1769893852282,0.2923708,77965.0,77943.0,0.012847]
[1769893852678,0.2923708,77965.0,77937.0,0.27418695]
[1769893852878,0.2923708,77965.0,77943.0,0.012847]
[1769893853485,0.2923708,77963.0,77940.0,0.012847]
[1769893853886,0.2923708,77961.0,77937.0,0.012848]
[1769893854283,0.12828489,77965.0,77940.0,0.27418695]
[1769893854490,0.09248,77966.0,77947.0,0.012846]
[1769893855286,0.09248,77966.0,77951.0,0.27418695]
[1769893855485,0.09248,77966.0,77940.0,0.27418695]
[1769893855678,0.09248,77966.0,77942.0,0.012847]
[1769893855879,0.09248,77966.0,77940.0,0.54198502]
[1769893856088,0.012843,77968.0,77946.0,0.012846]
[1769893856279,0.1652811,77967.0,77946.0,0.012846]
[1769893856584,0.2923708,77970.0,77949.0,0.012846]
[1769893856784,0.16528055,77969.0,77949.0,0.012846]